bitfinex-derivatives/quotes_SOLF0:USTF0_20240830
["timestamp","ask_amount","ask_price","bid_price","bid_amount"]
[1725029558804,3.6524,136.89,136.81,1.3274]
[1725029559201,43.5193,136.93,136.81,1.3274]
[1725029559614,0.05105666,136.88,136.85,0.05149014]
[1725029560308,0.05105666,136.88,136.87,3.6529]
[1725029561507,3.6509,136.95,136.92,3.6515]
[1725029561902,4.0649,136.98,136.92,3.6515]
[1725029561903,3.6506,136.96,136.92,3.6515]
[1725029562102,4.0649,136.98,136.87,42.1]
[1725029562307,4.0649,136.98,136.87,50.98]
[1725029562507,4.0649,136.98,136.87,42.1]
[1725029562707,0.05020332,136.94,136.92,3.6513]
[1725029563316,0.05020332,136.94,136.93,3.6513]
[1725029563817,0.05020332,136.94,136.91,3.65958926]
[1725029564112,0.05020332,136.94,136.91,0.05309923]
[1725029564913,0.05020332,136.94,136.93,3.6513]
[1725029565310,0.05020332,136.94,136.92,3.6513]
[1725029565618,0.05020332,136.94,136.91,0.05309923]
[1725029565817,0.05020332,136.94,136.93,3.6513]
[1725029567107,0.05020332,136.94,136.91,7.43963135]
[1725029567304,0.05020332,136.94,136.91,0.05309923]
[1725029568015,0.05020332,136.94,136.91,3.64903965]
[1725029568211,0.05020332,136.94,136.93,3.6513]
[1725029568410,0.05020332,136.94,136.93,7.27389053]
[1725029568606,0.05020332,136.94,136.93,3.6513]
[1725029572611,0.05020332,136.94,136.91,0.05309923]
[1725029573117,35.11020332,136.94,136.91,0.05309923]
[1725029573322,35.06,136.94,136.83,38.64811505]
[1725029573916,35.06,136.94,136.83,47.18811505]
[1725029574117,35.06,136.94,136.84,8.54]
[1725029574319,0.05478185,136.9,136.88,3.70699572]
[1725029574917,0.05478185,136.9,136.89,3.6523]
[1725029576220,4.0082,136.97,136.93,3.651]
[1725029576417,7.6586,136.97,136.93,7.33416947]
[1725029576617,7.6586,136.97,136.93,3.651]
[1725029577022,3.6497,136.99,136.93,3.73282854]
[1725029577214,43.6,137.03,136.87,35.06]
[1725029577215,0.05248777,136.97,136.9,35.06]
[1725029577415,0.05248777,136.97,136.87,35.06]
[1725029577621,0.05170044,136.93,136.92,0.04633303]
[1725029577917,0.05542306,136.94,136.91,35.11314859]
[1725029578126,6.31579822,137.02,136.91,35.11314859]
[1725029578127,3.6497,136.99,136.91,38.85068613]
[1725029578323,0.04704632,136.96,136.94,0.05590494]
[1725029578622,0.05449497,136.96,136.94,0.05590494]
[1725029578814,0.05449497,136.96,136.95,3.6507]
[1725029581324,5.01102117,137.06,136.94,35.11590494]
[1725029581325,5.01102117,137.06,136.97,35.06]
[1725029581523,1.3509,137.06,136.97,35.06]
[1725029581726,3.6485,137.04,137.01,3.649]
[1725029581922,1.3509,137.06,137.01,3.649]
[1725029582118,0.054913,137.05,137.02,0.04710322]
[1725029582320,3.6483,137.04,137.02,0.04710322]
[1725029582530,0.054913,137.05,137.02,3.69580322]
[1725029582727,0.054913,137.05,137.02,0.04710322]
[1725029583527,3.6485,137.04,137.02,0.04710322]
[1725029584425,0.054913,137.05,137.02,0.04710322]
[1725029585027,3.703113,137.05,137.02,3.69580322]
[1725029585222,0.054913,137.05,137.02,0.04710322]
[1725029585532,0.054913,137.05,137.03,3.6486]
[1725029585829,0.054913,137.05,137.02,0.04710322]
[1725029586036,0.054913,137.05,137.04,3.6483]
[1725029586244,0.054913,137.05,137.02,0.04710322]
[1725029586625,0.054913,137.05,137.03,3.6485]
[1725029587035,0.054913,137.05,137.02,0.04710322]
[1725029587334,0.054913,137.05,137.04,3.6483]
[1725029587528,0.054913,137.05,137.02,0.04710322]
[1725029587927,35.114913,137.05,136.92,35.06]
[1725029588129,35.06,137.03,136.93,8.54]
[1725029588338,3.6493,137.01,136.97,3.65]
[1725029588522,3.6493,137.01,136.98,3.66737195]
[1725029588722,3.6499,136.98,136.92,12.5835]
[1725029589034,0.05582447,136.96,136.94,0.05358989]
[1725029589230,0.0460927,136.96,136.94,0.05366785]
[1725029589935,0.0460927,136.96,136.95,3.6507]
[1725029590335,0.0460927,136.96,136.94,0.05366785]
[1725029590534,0.0460927,136.96,136.95,3.6507]
[1725029591237,2.6817,137.04,136.99,3.6496]
[1725029591536,1.3543,137.04,136.96,43.6]
[1725029591736,5.0027,137.04,136.96,43.6]
[1725029591935,1.3543,137.04,136.96,43.6]
[1725029592232,3.69898057,137.01,136.99,0.04782334]
[1725029592432,0.04978057,137.01,136.99,0.04782334]
[1725029593340,0.04978057,137.01,136.99,3.69722334]
[1725029593633,0.04978057,137.01,136.99,0.04782334]
[1725029594134,0.04978057,137.01,137.0,3.6494]
[1725029594725,0.04978057,137.01,136.99,0.04782334]
[1725029596328,3.69908057,137.01,136.99,0.04782334]
[1725029596642,0.04978057,137.01,136.99,0.04782334]
[1725029596830,0.04978057,137.01,136.96,7.36290273]
[1725029597133,0.04978057,137.01,136.93,1.2908]
[1725029597335,35.10978057,137.01,136.93,3.56777866]
[1725029597536,35.10978057,137.01,136.9,44.9684]
[1725029597731,35.06,137.01,136.91,5.05006604]
[1725029597932,0.05505908,136.97,136.95,0.04751532]
[1725029598236,0.04761416,136.97,136.95,3.63573343]
[1725029598439,0.04761416,136.97,136.96,3.6505]
[1725029600337,0.04761416,136.97,136.95,7.28633343]
[1725029600540,0.04761416,136.97,136.95,3.63573343]
[1725029601343,0.04761416,136.97,136.95,0.04751532]
[1725029601344,3.69801416,136.97,136.95,0.04751532]
[1725029601842,3.6505,136.96,136.95,0.04751532]
[1725029603247,0.04761416,136.97,136.95,0.04751532]
[1725029603635,0.04761416,136.97,136.96,3.6505]
[1725029608537,0.04761416,136.97,136.95,3.69821532]
[1725029608742,0.04761416,136.97,136.95,0.04751532]
[1725029609851,0.04761416,136.97,136.96,3.6505]
[1725029611454,0.04761416,136.97,136.95,0.04751532]
[1725029613053,0.04761416,136.97,136.96,3.6505]
[1725029613246,0.04761416,136.97,136.95,0.04751532]
[1725029613651,3.6505,136.96,136.95,0.04751532]
[1725029613842,35.10761416,136.97,136.88,1.3437]
[1725029614042,38.77194353,136.97,136.88,5.06330756]
[1725029614239,38.77194353,136.97,136.91,3.6517]
[1725029614445,38.77194353,136.97,136.88,5.03630099]
[1725029614446,35.06,136.95,136.88,5.03630099]
[1725029614648,35.06,136.95,136.85,1.3483]
[1725029614849,0.04998081,136.91,136.89,0.05524215]
[1725029615147,0.0487618,136.91,136.89,0.05524215]
[1725029615653,3.6522,136.9,136.89,0.05524215]
[1725029617351,3.7005618,136.91,136.89,0.05524215]
[1725029617747,0.0487618,136.91,136.89,0.05524215]
[1725029618757,0.0487618,136.91,136.89,3.70754215]
[1725029619057,0.0487618,136.91,136.89,0.05524215]
[1725029619856,7.305,137.15,136.9,35.06]
[1725029620051,37.7777,137.02,136.9,38.65527324]
[1725029620245,3.6496,137.0,136.94,3.6508]
[1725029620444,41.33938279,137.02,136.91,11.0899]
[1725029620645,1.2911,137.01,136.91,11.0899]
[1725029620854,0.05272352,136.97,136.95,3.70203832]
[1725029621059,0.05272352,136.97,136.95,0.05153832]
[1725029623053,0.05272352,136.97,136.96,3.6505]
[1725029624254,0.05272352,136.97,136.95,0.05153832]
[1725029624955,35.11272352,136.97,136.95,0.05153832]
[1725029625155,35.11272352,136.97,136.87,9.633]
[1725029625156,35.11272352,136.97,136.87,1.373]
[1725029625352,35.06,136.95,136.84,43.32]
[1725029625545,1.2929,136.94,136.84,47.03750876]
[1725029625750,1.2929,136.94,136.87,3.6526]
[1725029625950,35.06,136.92,136.84,8.26]
[1725029626151,0.0462865,136.89,136.87,0.04981893]
[1725029626860,0.0462865,136.89,136.88,3.6526]
[1725029628056,0.0462865,136.89,136.88,38.7126]
[1725029628364,0.0462865,136.89,136.88,3.6526]
[1725029630254,0.0462865,136.89,136.87,0.04981893]
[1725029630255,0.0462865,136.89,136.87,3.70261893]
[1725029630459,0.0462865,136.89,136.87,0.04981893]
[1725029631667,3.6987865,136.89,136.87,0.04981893]
[1725029632062,0.0462865,136.89,136.87,0.04981893]
[1725029633159,0.0462865,136.89,136.87,3.70251893]
[1725029634063,0.0462865,136.89,136.88,3.6526]
[1725029637170,1.3663,136.97,136.92,3.6514]
[1725029637360,1.3663,136.97,136.92,3.64994157]
[1725029637667,1.3663,136.97,136.88,35.06]
[1725029637859,3.6512,136.94,136.91,3.6517]
[1725029638260,0.04991915,136.94,136.91,0.05493433]
[1725029638566,3.6514,136.93,136.91,0.05493433]
[1725029638862,0.04991915,136.94,136.91,0.05493433]
[1725029639164,3.6515,136.92,136.91,0.05493433]
[1725029641562,0.04991915,136.94,136.91,0.05493433]
[1725029641865,3.6515,136.92,136.91,0.05493433]
[1725029643567,3.56245434,136.91,136.85,3.72744435]
[1725029643868,35.06,136.9,136.8,8.12]
[1725029644371,35.06,136.9,136.82,4.96697304]
[1725029644672,3.6531,136.86,136.85,0.04736278]
[1725029644866,35.10909981,136.87,136.84,0.0513677]
[1725029645167,0.05437683,136.87,136.85,35.06]
[1725029645670,0.05437683,136.87,136.86,3.6531]
[1725029649664,0.04963554,136.92,136.91,3.6518]
[1725029649862,1.392,136.98,136.91,38.62559432]
[1725029650067,3.6502,136.97,136.91,38.62559432]
[1725029650266,1.392,136.98,136.91,38.62559432]
[1725029650570,1.3488,137.0,136.91,46.74559432]
[1725029650871,3.6501,136.98,136.91,38.62559432]
[1725029651168,0.05319689,136.97,136.94,0.05190353]
[1725029653263,0.05319689,136.97,136.95,3.6506]
[1725029654169,0.05319689,136.97,136.94,0.05190353]
[1725029654561,0.05319689,136.97,136.95,35.06]
[1725029654960,0.05319689,136.97,136.96,3.6505]
[1725029655160,2.65,137.05,136.95,35.06]
[1725029655361,37.71,137.05,136.97,3.6501]
[1725029655764,37.71,137.05,136.98,3.6282669]
[1725029656169,0.05392508,137.03,137.0,0.05188285]
[1725029656575,35.06,137.02,137.0,0.05188285]
[1725029656770,35.06,137.02,136.93,6.464]
[1725029656966,35.06,137.02,136.93,2.8129]
[1725029657168,35.06,137.02,136.93,6.464]
[1725029657470,35.06,137.0,136.92,1.3752]
[1725029657672,3.6506,136.96,136.92,5.0266]
[1725029657973,0.04775305,136.95,136.93,0.05204642]
[1725029658172,0.04707791,136.95,136.93,0.05204642]
[1725029658474,0.04707791,136.95,136.94,3.6509]
[1725029658667,0.04707791,136.95,136.94,7.23260955]
[1725029659066,0.04707791,136.95,136.94,3.58170955]
[1725029659265,0.04707791,136.95,136.93,0.05204642]
[1725029659671,3.69797791,136.95,136.93,3.78122953]
[1725029659876,3.69797791,136.95,136.93,0.05204642]
[1725029660373,3.651,136.94,136.93,0.05204642]
[1725029660670,3.651,136.94,136.84,3.64832328]
[1725029660671,3.6522,136.9,136.87,11.7528]
[1725029660874,35.10707791,136.95,136.86,8.1]
[1725029660875,35.06,136.95,136.86,8.1]
[1725029661171,35.06,136.93,136.84,1.3056]
[1725029661366,35.06,136.93,136.85,3.6534]
[1725029661761,3.6523,136.89,136.88,0.0475541]
[1725029661960,0.05623232,136.9,136.87,0.05375388]
[1725029662173,35.06,136.89,136.87,0.05375388]
[1725029662373,35.06,136.89,136.82,3.71229274]
[1725029662576,35.06,136.89,136.81,6.28118814]
[1725029662775,4.2585,136.9,136.81,2.6759]
[1725029662962,4.2585,136.9,136.81,37.7359]
[1725029663161,4.2585,136.9,136.81,6.32574296]
[1725029663372,3.70446087,136.87,136.84,0.04916644]
[1725029663572,0.05146087,136.87,136.84,0.04916644]
[1725029664368,0.05146087,136.87,136.84,35.10916644]
[1725029665368,0.05146087,136.87,136.86,3.6531]
[1725029666177,0.05146087,136.87,136.84,8.14916644]
[1725029666474,0.05146087,136.87,136.84,3.65926287]
[1725029666674,3.6531,136.86,136.84,0.04916644]
[1725029667071,3.6534,136.85,136.84,0.04916644]
[1725029668679,0.05146087,136.87,136.84,0.04916644]
[1725029669265,3.6534,136.85,136.84,0.04916644]
[1725029670873,3.6533,136.86,136.84,0.04916644]
[1725029671580,3.70446087,136.87,136.84,0.04916644]
[1725029672378,0.05146087,136.87,136.84,0.04916644]
[1725029672971,3.6534,136.85,136.84,0.04916644]
[1725029673179,0.05146087,136.87,136.84,0.04916644]
[1725029674385,0.05146087,136.87,136.84,3.71933862]
[1725029674586,0.05146087,136.87,136.84,0.04916644]
[1725029674972,3.6534,136.85,136.84,0.04916644]
[1725029675779,3.6532,136.86,136.84,0.04916644]
[1725029676180,3.6534,136.85,136.84,0.04916644]
[1725029676987,0.05146087,136.87,136.84,0.04916644]
[1725029678578,0.05146087,136.87,136.86,3.6531]
[1725029679579,64.26,136.97,136.9,3.652]
[1725029679780,2.6207,136.98,136.88,35.06]
[1725029679984,5.13809182,136.96,136.88,35.06]
[1725029680186,1.4197,136.96,136.87,8.12]
[1725029680485,3.6516,136.92,136.87,8.12]
[1725029680693,0.04619982,136.91,136.88,0.05273947]
[1725029681085,3.6523,136.9,136.88,0.05273947]
[1725029681296,0.04619982,136.91,136.88,0.05273947]
[1725029681685,3.6523,136.89,136.88,0.05273947]
[1725029681894,0.04619982,136.91,136.88,0.05273947]
[1725029682285,3.6523,136.9,136.88,0.05273947]
[1725029682484,0.04619982,136.91,136.88,0.05273947]
[1725029682689,3.6521,136.9,136.88,0.05273947]
[1725029682989,35.10619982,136.91,136.88,0.05273947]
[1725029683187,3.6523,136.89,136.88,0.05273947]
[1725029684193,35.06,136.91,136.82,3.6541]
[1725029684786,3.6533,136.86,136.82,3.6541]
[1725029684982,35.06,136.89,136.8,3.57403754]
[1725029685186,3.6539,136.84,136.83,0.04998076]
[1725029686092,3.6534,136.85,136.83,0.04998076]
[1725029686393,0.05385267,136.86,136.83,0.04998076]
[1725029687188,0.05385267,136.86,136.83,3.70378076]
[1725029687393,0.05385267,136.86,136.83,0.04998076]
[1725029688391,3.70705267,136.86,136.83,0.04998076]
[1725029688597,0.05385267,136.86,136.83,0.04998076]
[1725029688993,3.6535,136.85,136.83,0.04998076]
[1725029689194,0.05385267,136.86,136.83,0.04998076]
[1725029690090,3.6537,136.84,136.83,0.04998076]
[1725029693098,3.6535,136.85,136.83,0.04998076]
[1725029693403,0.05385267,136.86,136.83,0.04998076]
[1725029693602,3.6537,136.84,136.83,0.04998076]
[1725029693897,0.05385267,136.86,136.83,0.04998076]
[1725029694293,3.6537,136.84,136.83,0.04998076]
[1725029698197,3.6535,136.85,136.83,0.04998076]
[1725029698700,0.05385267,136.86,136.83,3.70388076]
[1725029698894,3.70725267,136.86,136.83,3.70388076]
[1725029699304,0.05385267,136.86,136.83,0.04998076]
[1725029699695,0.05385267,136.86,136.83,3.70378076]
[1725029700099,0.05385267,136.86,136.83,0.04998076]
[1725029700604,3.6537,136.84,136.83,0.04998076]
[1725029700794,28.05,136.84,136.74,1.3769]
[1725029700996,28.05,136.81,136.73,2.7805]
[1725029701608,10.8688,136.83,136.74,28.05]
[1725029701906,0.04674292,136.8,136.79,3.6547]
[1725029702208,0.04758514,136.81,136.79,3.63427299]
[1725029702402,0.04933959,136.81,136.79,0.04938916]
[1725029702598,0.04933959,136.81,136.79,3.72092551]
[1725029702804,0.04933959,136.81,136.8,3.6803042]
[1725029703109,0.04933959,136.81,136.8,3.6547]
[1725029703595,1.4024,136.88,136.82,3.6542]
[1725029703801,1.4024,136.88,136.8,1.3309]
[1725029704397,29.4524,136.88,136.8,1.3309]
[1725029704600,28.05,136.83,136.76,1.3185]
[1725029704794,0.05026609,136.81,136.78,0.05522065]
[1725029705803,3.6547,136.8,136.78,0.05522065]
[1725029706002,28.10026609,136.81,136.78,0.05522065]
[1725029706706,0.05026609,136.81,136.78,0.05522065]
[1725029707011,28.10026609,136.81,136.78,0.05522065]
[1725029707206,3.6547,136.8,136.78,0.05522065]
[1725029707402,1.3394,136.82,136.78,0.05522065]
[1725029707709,28.05,136.81,136.78,0.05522065]
[1725029707905,3.6547,136.8,136.78,0.05522065]
[1725029708304,3.70582497,136.8,136.78,0.05522065]
[1725029709012,0.05112497,136.8,136.79,3.655]
[1725029709205,0.05112497,136.8,136.79,7.24654021]
[1725029709399,35.1,136.89,136.79,3.59154021]
[1725029709712,35.1,136.89,136.79,1.4002]
[1725029709904,3.6531,136.86,136.79,5.10651159]
[1725029710404,0.04805732,136.84,136.81,3.70145847]
[1725029711311,0.04805732,136.84,136.81,0.04725847]
[1725029711912,0.04805732,136.84,136.83,3.6539]
[1725029712119,35.1,136.94,136.83,35.1]
[1725029712311,35.1,136.92,136.81,43.2]
[1725029712509,35.1,136.9,136.79,13.20651159]
[1725029712811,3.6537,136.84,136.8,3.6547]
[1725029713011,0.05083794,136.83,136.81,0.05080893]
[1725029713214,0.04694952,136.83,136.81,0.05215907]
[1725029713408,8.1,136.9,136.85,3.6532]
[1725029713907,3.6527,136.88,136.82,35.1]
[1725029714107,8.1,136.9,136.86,3.6529]
[1725029714309,0.05105907,136.89,136.87,3.72492016]
[1725029714502,0.05105907,136.89,136.87,0.05328678]
[1725029714705,0.05105907,136.89,136.87,3.70592454]
[1725029714902,0.05105907,136.89,136.87,0.05328678]
[1725029715209,3.70355907,136.89,136.87,0.05328678]
[1725029716017,0.05105907,136.89,136.87,0.05328678]
[1725029716399,0.05105907,136.89,136.87,1.37118678]
[1725029716805,1.3831,136.99,136.88,35.1]
[1725029717009,1.3831,136.99,136.91,35.1]
[1725029717204,3.6505,136.96,136.93,3.6511]
[1725029717406,3.6505,136.96,136.91,35.1]
[1725029717407,1.3831,136.99,136.89,43.2]
[1725029717816,3.68261381,136.95,136.93,0.05074861]
[1725029718213,0.03171381,136.95,136.93,0.05074861]
[1725029718515,3.651,136.94,136.93,0.05074861]
[1725029719216,42.405,136.96,136.86,3.61720363]
[1725029719418,35.1,136.94,136.86,7.27020363]
[1725029719609,3.6667397,136.93,136.86,3.653]
[1725029719810,3.6521,136.9,136.86,3.653]
[1725029720312,0.05302234,136.89,136.87,0.05223252]
[1725029720513,3.70542234,136.89,136.87,0.05223252]
[1725029720814,0.05302234,136.89,136.87,0.05223252]
[1725029722415,3.70552234,136.89,136.87,0.05223252]
[1725029722922,0.05302234,136.89,136.87,0.05223252]
[1725029723312,2.8126,136.99,136.88,35.1]
[1725029723516,2.8126,136.99,136.91,35.1]
[1725029723719,37.9126,136.99,136.89,37.7861]
[1725029724221,0.02944008,136.95,136.93,0.04792524]
[1725029724718,0.02944008,136.95,136.94,3.651]
[1725029725122,0.02944008,136.95,136.94,7.38656504]
[1725029725319,0.02944008,136.95,136.94,3.651]
[1725029725520,0.02944008,136.95,136.93,0.04792524]
[1725029725714,0.02944008,136.95,136.94,3.5734191]
[1725029725917,0.02944008,136.95,136.93,0.04792524]
[1725029727733,3.651,136.94,136.93,0.04792524]
[1725029728536,3.60433703,136.93,136.83,43.18]
[1725029728733,3.60433703,136.93,136.83,35.1]
[1725029728734,1.3111,136.93,136.83,35.1]
[1725029729224,1.3111,136.93,136.85,35.1]
[1725029729427,0.0495119,136.9,136.88,0.05224851]
[1725029729627,0.04848869,136.9,136.88,3.62558431]
[1725029729832,0.04848869,136.9,136.88,0.05008782]
[1725029731029,3.6523,136.89,136.88,0.05008782]
[1725029731227,0.04848869,136.9,136.88,0.05008782]
[1725029731539,3.70068869,136.9,136.88,0.05008782]
[1725029731832,0.04848869,136.9,136.88,0.05008782]
[1725029732228,3.6523,136.89,136.88,0.05008782]
[1725029735453,35.1,136.9,136.79,3.70631159]
[1725029735737,35.1,136.87,136.78,35.1]
[1725029735934,1.2992,136.89,136.8,35.1]
[1725029736342,0.04771736,136.86,136.83,0.05219912]
[1725029736541,3.70101736,136.86,136.83,0.05219912]
[1725029736741,0.04771736,136.86,136.83,3.68746841]
[1725029737041,3.6537,136.84,136.83,0.05219912]
[1725029742045,3.655,136.8,136.76,3.74323224]
[1725029742244,36.4808,136.85,136.75,2.6796]
[1725029742749,40.1305848,136.85,136.75,6.32244257]
[1725029743052,0.05510351,136.81,136.79,0.04606051]
[1725029743247,0.05424025,136.81,136.8,3.6545]
[1725029744149,35.1,136.92,136.84,3.6535]
[1725029744343,36.4082,136.92,136.84,3.7425084]
[1725029744645,3.6524,136.89,136.86,3.6531]
[1725029744844,36.4082,136.92,136.83,35.1]
[1725029745150,35.1,136.88,136.82,3.60656336]
[1725029745534,0.04761403,136.86,136.84,0.05374282]
[1725029745738,3.6534,136.85,136.84,0.05374282]
[1725029747144,0.04761403,136.86,136.84,0.05374282]
[1725029747742,0.04761403,136.86,136.84,3.70734282]
[1725029747943,0.04761403,136.86,136.84,0.05374282]
[1725029749843,3.6534,136.85,136.84,0.05374282]
[1725029750042,0.04761403,136.86,136.84,0.05374282]
[1725029752359,3.70091403,136.86,136.84,0.05374282]
[1725029752557,0.04761403,136.86,136.84,0.05374282]
[1725029757058,0.04761403,136.86,136.84,3.70734282]
[1725029757754,0.04761403,136.86,136.85,3.6534]
[1725029757961,0.04761403,136.86,136.84,0.05374282]
[1725029758362,3.6534,136.85,136.84,0.05374282]
[1725029760157,35.14761403,136.86,136.84,0.05374282]
[1725029760361,3.6534,136.85,136.84,0.05374282]
[1725029761654,42.45005302,136.85,136.84,0.05374282]
[1725029761961,35.1,136.85,136.75,35.1]
[1725029762256,35.1,136.83,136.74,3.9514]
[1725029762454,38.67064542,136.83,136.75,3.56699071]
[1725029762666,35.1,136.81,136.65,29.22]
[1725029762963,0.05096633,136.74,136.72,0.05305248]
[1725029763264,0.0484592,136.74,136.73,3.6566]
[1725029763563,0.0484592,136.74,136.72,0.04926416]
[1725029763754,0.0484592,136.74,136.72,3.70596416]
[1725029763954,0.0484592,136.74,136.72,7.45093894]
[1725029764154,0.0484592,136.74,136.72,3.70596416]
[1725029764556,0.0484592,136.74,136.73,3.6566]
[1725029764953,3.72405729,136.98,136.73,37.7948]
[1725029764954,224.0,136.87,136.73,37.7948]
[1725029765162,3.6542,136.82,136.74,1.3541]
[1725029765358,3.61121263,136.85,136.74,36.4541]
[1725029765560,1.3397,136.86,136.78,35.1]
[1725029765758,3.59048384,136.85,136.74,36.4541]
[1725029765959,0.04681074,136.81,136.78,0.04703445]
[1725029766158,0.04681074,136.81,136.78,3.70223445]
[1725029766350,0.04681074,136.81,136.78,0.04703445]
[1725029766952,3.70131074,136.81,136.78,0.04703445]
[1725029767155,0.04681074,136.81,136.78,0.04703445]
[1725029768051,3.655,136.79,136.78,0.04703445]
[1725029768252,35.1,136.79,136.72,3.60134493]
[1725029768455,35.1,136.78,136.67,37.7627]
[1725029768661,9.9305,136.8,136.67,2.6627]
[1725029768856,3.6555,136.77,136.71,3.657]
[1725029769058,1.4153,136.79,136.71,35.1]
[1725029769259,3.6556,136.77,136.7,3.5857404]
[1725029769462,1.4153,136.79,136.7,35.1]
[1725029769764,3.6561,136.75,136.73,0.05304009]
[1725029769966,0.05384006,136.76,136.73,0.05304009]
[1725029770357,1.4153,136.83,136.75,35.1]
[1725029770563,1.4183,136.86,136.77,35.1]
[1725029770758,5.01427806,136.86,136.78,3.66691042]
[1725029770962,1.4183,136.86,136.77,35.1]
[1725029771162,1.4183,136.86,136.79,35.1]
[1725029771368,1.4183,136.86,136.8,3.58720292]
[1725029771679,0.05517222,136.84,136.81,0.0490786]
[1725029772167,3.6542,136.83,136.81,0.0490786]
[1725029772368,0.05517222,136.84,136.81,0.0490786]
[1725029772369,35.15517222,136.84,136.81,0.0490786]
[1725029772562,0.05517222,136.84,136.81,0.0490786]
[1725029774170,35.1,136.82,136.81,0.0490786]
[1725029774373,35.1,136.82,136.74,4.049]
[1725029774561,2.7112,136.85,136.74,4.049]
[1725029774562,2.7112,136.85,136.76,35.1]
[1725029774970,2.7112,136.85,136.79,35.1]
[1725029775275,2.7112,136.85,136.79,38.755]
[1725029775469,2.7112,136.85,136.78,3.69152046]
[1725029775673,0.0460812,136.83,136.81,0.0487336]
[1725029775977,0.0460812,136.83,136.81,0.05589007]
[1725029776181,3.6542,136.82,136.81,0.05589007]
[1725029777470,0.0460812,136.83,136.81,0.05589007]
[1725029777871,35.1,136.82,136.71,3.56709323]
[1725029778171,35.1,136.77,136.67,37.9126]
[1725029778373,3.62463749,136.77,136.67,37.9126]
[1725029778567,35.1,136.79,136.67,37.9126]
[1725029778770,1.2868,136.78,136.67,37.9126]
[1725029778970,3.70569497,136.74,136.72,0.04897601]
[1725029779276,0.04929497,136.74,136.72,0.04897601]
[1725029779778,3.6566,136.73,136.72,0.04897601]
[1725029779982,43.16,136.74,136.63,2.7537]
[1725029780171,35.1,136.71,136.63,2.7537]
[1725029780479,35.1,136.71,136.65,3.6587]
[1725029780672,38.7744899,136.71,136.63,2.7537]
[1725029780874,3.6744899,136.71,136.63,37.8537]
[1725029781079,0.05595186,136.68,136.66,0.05362985]
[1725029781272,70.2,136.67,136.5,7.53664544]
[1725029781472,29.24,136.68,136.57,35.1]
[1725029781673,11.82,136.67,136.57,38.69478455]
[1725029781882,3.70300833,136.68,136.59,35.1]
[1725029782181,12.22,136.7,136.61,35.1]
[1725029782382,3.69857608,136.7,136.62,3.60928623]
[1725029782576,3.6583,136.67,136.65,0.04659928]
[1725029782771,47.94,136.68,136.61,3.69308695]
[1725029782976,0.05160182,136.67,136.65,0.04780636]
[1725029783180,35.1,136.7,136.6,3.69015942]
[1725029783386,52.02417753,136.72,136.61,2.7214]
[1725029783679,3.66417753,136.72,136.63,35.1]
[1725029783872,1.4105,136.73,136.63,35.1]
[1725029784073,35.1,136.72,136.61,41.39665362]
[1725029784272,0.04995718,136.69,136.67,0.05287326]
[1725029784474,35.14995718,136.69,136.6,1.3983]
[1725029784676,38.77552173,136.72,136.6,5.06211159]
[1725029784878,38.77552173,136.72,136.61,35.1]
[1725029785090,40.19272173,136.72,136.61,35.1]
[1725029785275,3.658,136.68,136.61,2.6758]
[1725029785474,40.19272173,136.72,136.61,37.7758]
[1725029785675,0.05340577,136.66,136.63,0.05026401]
[1725029787480,0.05340577,136.66,136.64,3.659]
[1725029787680,0.05340577,136.66,136.63,3.62974293]
[1725029788776,3.71190577,136.66,136.63,3.62974293]
[1725029788971,0.05340577,136.66,136.63,3.62974293]
[1725029792892,1.4112,136.75,136.64,42.12]
[1725029793195,44.8687,136.78,136.64,42.12]
[1725029793485,44.8687,136.78,136.63,3.57947892]
[1725029793486,42.12,136.83,136.71,42.12]
[1725029793684,42.12,136.83,136.72,2.6204]
[1725029793890,0.05201341,136.79,136.76,0.04774832]
[1725029794487,0.05201341,136.79,136.77,3.6555]
[1725029794687,0.05201341,136.79,136.76,3.62278307]
[1725029794880,0.05201341,136.79,136.76,0.04774832]
[1725029795094,3.6555,136.77,136.76,0.04774832]
[1725029795392,0.05201341,136.79,136.76,0.04774832]
[1725029797187,49.442,136.89,136.76,42.16774832]
[1725029797384,53.5589,136.89,136.79,3.6548]